{"text_format":"1","workbook":"xlsx","n_sheets":1,"sheets":["Sheet1"],"not_rendered":{"charts":0,"images":0,"macros":1,"external_links":0,"defined_names":0,"comments":0,"pivot_tables":0},"unopened":[],"bounds":{"document_bytes":16777216,"sheet_cells":100000,"rows_first":2000,"rows_last":500,"rows_between":2000,"halvings":0,"cell_chars":16384,"cell_head_chars":4096},"cells_cut":0,"cells_raw":0,"read":"whole","date_system":"1900"}

{"sheet":"Sheet1","index":0,"n_rows":81,"n_cols":15,"rows_kept":81,"cut":false,"hidden":false,"merged":[[0,12,1,12],[0,14,1,14],[0,5,1,5],[0,6,1,6],[0,7,1,7],[0,8,1,8],[0,9,1,9],[0,10,1,10],[0,0,1,0],[0,1,1,1],[0,2,1,2],[0,3,1,3],[0,4,1,4]]}
["م","الكود","الصنف","مصر","الاردن","سوريا","العراق","السعودية","الكويت","قنا",null,null,"معادلة اكسيل",null,"معادلة VBA"]
[]
[1,6222000901529,"سوبر فينا 10 كيلو","سوبر فينا 10 كيلو","سوبر فينا 10 كيلو","سوبر فينا 10 كيلو","سوبر فينا 10 كيلو","سوبر فينا 10 كيلو","سوبر فينا 10 كيلو",{"$f":"IFERROR(INDEX({\"العمود c\";\"العمود d\";\"العمود e\";\"العمود f\";\"العمود g\";\"العمود h\"},MATCH(TRUE,NOT(C3=C3:H3),0)),\"لا يوجد عمود مختلف\")","v":"لا يوجد عمود مختلف"},{"$f":"IF(COUNTIF(C3:H3,C3)=1,\"العمود C مختلف\",IF(COUNTIF(C3:H3,D3)=1,\"العمود D مختلف\",IF(COUNTIF(C3:H3,E3)=1,\"العمود E مختلف\",IF(COUNTIF(C3:H3,F3)=1,\"العمود F مختلف\",IF(COUNTIF(C3:H3,G3)=1,\"العمود G مختلف\",IF(COUNTIF(C3:H3,H3)=1,\"العمود H مختلف\",\"لا يوجد عمود مختلف فريد\"))))))","v":"لا يوجد عمود مختلف فريد"},null,{"$f":"TRIM(  IF(COUNTIF(C3:I3,C3)=1, \"العمود C مختلف\", \"\") &    IF(AND(COUNTIF(C3:I3,C3)=1, OR(COUNTIF(C3:I3,D3)=1,COUNTIF(C3:I3,E3)=1,COUNTIF(C3:I3,F3)=1,COUNTIF(C3:I3,G3)=1,COUNTIF(C3:I3,H3)=1,COUNTIF(C3:I3,I3)=1)), \" و \", \"\") &    IF(COUNTIF(C3:I3,D3)=1, \"العمود D مختلف\", \"\") &    IF(AND(COUNTIF(C3:I3,D3)=1, OR(COUNTIF(C3:I3,E3)=1,COUNTIF(C3:I3,F3)=1,COUNTIF(C3:I3,G3)=1,COUNTIF(C3:I3,H3)=1,COUNTIF(C3:I3,I3)=1)), \" و \", \"\") &    IF(COUNTIF(C3:I3,E3)=1, \"العمود E مختلف\", \"\") &    IF(AND(COUNTIF(C3:I3,E3)=1, OR(COUNTIF(C3:I3,F3)=1,COUNTIF(C3:I3,G3)=1,COUNTIF(C3:I3,H3)=1,COUNTIF(C3:I3,I3)=1)), \" و \", \"\") &    IF(COUNTIF(C3:I3,F3)=1, \"العمود F مختلف\", \"\") &    IF(AND(COUNTIF(C3:I3,F3)=1, OR(COUNTIF(C3:I3,G3)=1,COUNTIF(C3:I3,H3)=1,COUNTIF(C3:I3,I3)=1)), \" و \", \"\") &    IF(COUNTIF(C3:I3,G3)=1, \"العمود G مختلف\", \"\") &    IF(AND(COUNTIF(C3:I3,G3)=1, OR(COUNTIF(C3:I3,H3)=1,COUNTIF(C3:I3,I3)=1)), \" و \", \"\") &    IF(COUNTIF(C3:I3,H3)=1, \"العمود H مختلف\", \"\") &    IF(AND(COUNTIF(C3:I3,H3)=1, COUNTIF(C3:I3,I3)=1), \" و \", \"\") &   IF(COUNTIF(C3:I3,I3)=1, \"العمود I مختلف\", \"\"))","v":""},null,{"$f":"GetUniqueColumns(C3:I3)","v":""}]
[2,6222000901536,"سوبر فينا 10 كيلو نعناع","سوبر فينا 10 كيلو نعناع","سوبر فينا 10 كيلو نعناع","سوبر فينا 10 كيلو نعناع","سوبر فينا 10 كيلو نعناع","سوبر فينا 10 كيلو نعناع","سوبر فينا 10 كيلو نعناع",{"$f":"IFERROR(INDEX({\"العمود c\";\"العمود d\";\"العمود e\";\"العمود f\";\"العمود g\";\"العمود h\"},MATCH(TRUE,NOT(C4=C4:H4),0)),\"لا يوجد عمود مختلف\")","v":"لا يوجد عمود مختلف"},{"$f":"IF(COUNTIF(C4:H4,C4)=1,\"العمود C مختلف\",IF(COUNTIF(C4:H4,D4)=1,\"العمود D مختلف\",IF(COUNTIF(C4:H4,E4)=1,\"العمود E مختلف\",IF(COUNTIF(C4:H4,F4)=1,\"العمود F مختلف\",IF(COUNTIF(C4:H4,G4)=1,\"العمود G مختلف\",IF(COUNTIF(C4:H4,H4)=1,\"العمود H مختلف\",\"لا يوجد عمود مختلف فريد\"))))))","v":"لا يوجد عمود مختلف فريد"},null,{"$f":"TRIM(  IF(COUNTIF(C4:I4,C4)=1, \"العمود C مختلف\", \"\") &    IF(AND(COUNTIF(C4:I4,C4)=1, OR(COUNTIF(C4:I4,D4)=1,COUNTIF(C4:I4,E4)=1,COUNTIF(C4:I4,F4)=1,COUNTIF(C4:I4,G4)=1,COUNTIF(C4:I4,H4)=1,COUNTIF(C4:I4,I4)=1)), \" و \", \"\") &    IF(COUNTIF(C4:I4,D4)=1, \"العمود D مختلف\", \"\") &    IF(AND(COUNTIF(C4:I4,D4)=1, OR(COUNTIF(C4:I4,E4)=1,COUNTIF(C4:I4,F4)=1,COUNTIF(C4:I4,G4)=1,COUNTIF(C4:I4,H4)=1,COUNTIF(C4:I4,I4)=1)), \" و \", \"\") &    IF(COUNTIF(C4:I4,E4)=1, \"العمود E مختلف\", \"\") &    IF(AND(COUNTIF(C4:I4,E4)=1, OR(COUNTIF(C4:I4,F4)=1,COUNTIF(C4:I4,G4)=1,COUNTIF(C4:I4,H4)=1,COUNTIF(C4:I4,I4)=1)), \" و \", \"\") &    IF(COUNTIF(C4:I4,F4)=1, \"العمود F مختلف\", \"\") &    IF(AND(COUNTIF(C4:I4,F4)=1, OR(COUNTIF(C4:I4,G4)=1,COUNTIF(C4:I4,H4)=1,COUNTIF(C4:I4,I4)=1)), \" و \", \"\") &    IF(COUNTIF(C4:I4,G4)=1, \"العمود G مختلف\", \"\") &    IF(AND(COUNTIF(C4:I4,G4)=1, OR(COUNTIF(C4:I4,H4)=1,COUNTIF(C4:I4,I4)=1)), \" و \", \"\") &    IF(COUNTIF(C4:I4,H4)=1, \"العمود H مختلف\", \"\") &    IF(AND(COUNTIF(C4:I4,H4)=1, COUNTIF(C4:I4,I4)=1), \" و \", \"\") &   IF(COUNTIF(C4:I4,I4)=1, \"العمود I مختلف\", \"\"))","v":""},null,{"$f":"GetUniqueColumns(C4:I4)","v":""}]
[3,6222000911733,"نعناع 12كيس 50 ق 4جم","نعناع 12كيس 50 ق 4جم","نعناع 12كيس 50 ق 4جم","نعناع 12كيس 50 ق 4جم","نعناع 12كيس 50 ق 4جم","نعناع 12كيس 50 ق 4جم","نعناع 12كيس 50 ق 4جم",{"$f":"IFERROR(INDEX({\"العمود c\";\"العمود d\";\"العمود e\";\"العمود f\";\"العمود g\";\"العمود h\"},MATCH(TRUE,NOT(C5=C5:H5),0)),\"لا يوجد عمود مختلف\")","v":"لا يوجد عمود مختلف"},"لا يوجد عمود مختلف فريد",null,"",null,""]
[4,6222000911764,"سولا فواكه 12 كيس * 50 ق","سولا فواكه 12 كيس * 50 ق","سولا فواكه 12 كيس * 50 ق","سولا فواكه 12 كيس * 50 ق","سولا فواكه 12 كيس * 50 ق","سولا فواكه 12 كيس * 50 ق","سولا فواكه 12 كيس * 50 ق",{"$f":"IFERROR(INDEX({\"العمود c\";\"العمود d\";\"العمود e\";\"العمود f\";\"العمود g\";\"العمود h\"},MATCH(TRUE,NOT(C6=C6:H6),0)),\"لا يوجد عمود مختلف\")","v":"لا يوجد عمود مختلف"},"لا يوجد عمود مختلف فريد",null,"",null,""]
[5,"00743","قهوة 12 ع * 200 ق","قهوة 12 ع * 200 ق","قهوة 12 ع * 200 ق","قهوة 12 ع * 200 ق","قهوة 12 ع * 200 ق","قهوة 12 ع * 200 ق","قهوة 12 ع * 200 ق",{"$f":"IFERROR(INDEX({\"العمود c\";\"العمود d\";\"العمود e\";\"العمود f\";\"العمود g\";\"العمود h\"},MATCH(TRUE,NOT(C7=C7:H7),0)),\"لا يوجد عمود مختلف\")","v":"لا يوجد عمود مختلف"},"لا يوجد عمود مختلف فريد",null,"",null,""]
[6,6222000901758,"سولا قهوه 10 كيلو","سولا قهوه 10 كيلو","سولا قهوه 10 كيلو","سولا قهوه 10 كيلو","سولا قهوه 10 كيلو","سولا قهوه 10 كيلو","سولا قهوه 10 كيلو",{"$f":"IFERROR(INDEX({\"العمود c\";\"العمود d\";\"العمود e\";\"العمود f\";\"العمود g\";\"العمود h\"},MATCH(TRUE,NOT(C8=C8:H8),0)),\"لا يوجد عمود مختلف\")","v":"لا يوجد عمود مختلف"},"لا يوجد عمود مختلف فريد",null,"",null,""]
[7,6222000912020,"قهوة 5 ك","قهوة 5 ك","قهوة 5 ك","قهوة 5 ك","قهوة 5 ك","قهوة 5 ك","قهوة 5 ك",{"$f":"IFERROR(INDEX({\"العمود c\";\"العمود d\";\"العمود e\";\"العمود f\";\"العمود g\";\"العمود h\"},MATCH(TRUE,NOT(C9=C9:H9),0)),\"لا يوجد عمود مختلف\")","v":"لا يوجد عمود مختلف"},"لا يوجد عمود مختلف فريد",null,"",null,""]
[8,6222000909815,"قهوة 12 كيس * 80 ق / 90 ق","قهوة 12 كيس * 80 ق / 90 ق","قهوة 12 كيس * 80 ق / 90 ق","قهوة 12 كيس * 80 ق / 90 ق","قهوة 12 كيس * 80 ق / 90 ق","قهوة 12 كيس * 80 ق / 90 ق","قهوة 12 كيس * 80 ق / 90 ق",{"$f":"IFERROR(INDEX({\"العمود c\";\"العمود d\";\"العمود e\";\"العمود f\";\"العمود g\";\"العمود h\"},MATCH(TRUE,NOT(C10=C10:H10),0)),\"لا يوجد عمود مختلف\")","v":"لا يوجد عمود مختلف"},"لا يوجد عمود مختلف فريد",null,"",null,""]
[9,6222000908610,"قهوة 30 كيس * 18 ق / 25 ق","قهوة 30 كيس * 18 ق / 25 ق","قهوة 30 كيس * 18 ق / 25 ق","قهوة 30 كيس * 18 ق / 25 ق","قهوة 30 كيس * 18 ق / 25 ق","قهوة 30 كيس * 18 ق / 25 ق","قهوة 30 كيس * 18 ق / 25 ق",{"$f":"IFERROR(INDEX({\"العمود c\";\"العمود d\";\"العمود e\";\"العمود f\";\"العمود g\";\"العمود h\"},MATCH(TRUE,NOT(C11=C11:H11),0)),\"لا يوجد عمود مختلف\")","v":"لا يوجد عمود مختلف"},"لا يوجد عمود مختلف فريد",null,"",null,""]
[10,6222000909891,"قهوة 30 كيس * 12قطعه","قهوة 30 كيس * 12قطعه","قهوة 30 كيس * 12قطعه","قهوة 30 كيس * 12قطعه","قهوة 30 كيس * 12قطعه","قهوة 30 كيس * 12قطعه","قهوة 30 كيس * 12قطعه",{"$f":"IFERROR(INDEX({\"العمود c\";\"العمود d\";\"العمود e\";\"العمود f\";\"العمود g\";\"العمود h\"},MATCH(TRUE,NOT(C12=C12:H12),0)),\"لا يوجد عمود مختلف\")","v":"لا يوجد عمود مختلف"},"لا يوجد عمود مختلف فريد",null,"",null,""]
[11,6222000911757,"سولا زبدة 5ع * 200ق 4 جم","سولا زبدة 5ع * 200ق 4 جم","سولا زبدة 5ع * 200ق 4 جم","سولا زبدة 5ع * 200ق 4 جم","سولا زبدة 5ع * 200ق 4 جم","سولا زبدة 5ع * 200ق 4 جم","سولا زبدة 5ع * 200ق 4 جم",{"$f":"IFERROR(INDEX({\"العمود c\";\"العمود d\";\"العمود e\";\"العمود f\";\"العمود g\";\"العمود h\"},MATCH(TRUE,NOT(C13=C13:H13),0)),\"لا يوجد عمود مختلف\")","v":"لا يوجد عمود مختلف"},"لا يوجد عمود مختلف فريد",null,"",null,""]
[12,"00744","زبدة 12 ع * 200 ق","زبدة 12 ع * 200 ق","زبدة 12 ع * 200 ق","زبدة 12 ع * 200 ق","زبدة 12 ع * 200 ق","زبدة 12 ع * 200 ق","زبدة 12 ع * 200 ق",{"$f":"IFERROR(INDEX({\"العمود c\";\"العمود d\";\"العمود e\";\"العمود f\";\"العمود g\";\"العمود h\"},MATCH(TRUE,NOT(C14=C14:H14),0)),\"لا يوجد عمود مختلف\")","v":"لا يوجد عمود مختلف"},"لا يوجد عمود مختلف فريد",null,"",null,""]
[13,6222000901642,"سولا زبده 10 كيلو","سولا زبده 10 كيلو","سولا زبده 10 كيلو","سولا زبده 10 كيلو","سولا زبده 10 كيلو","سولا زبده 10 كيلو","سولا زبده 10 كيلو",{"$f":"IFERROR(INDEX({\"العمود c\";\"العمود d\";\"العمود e\";\"العمود f\";\"العمود g\";\"العمود h\"},MATCH(TRUE,NOT(C15=C15:H15),0)),\"لا يوجد عمود مختلف\")","v":"لا يوجد عمود مختلف"},"لا يوجد عمود مختلف فريد",null,"",null,""]
[14,6222000912037,"زبدة 5 ك","زبدة 5 ك","زبدة 5 ك","زبدة 5 ك","زبدة 5 ك","زبدة 5 ك","زبدة 5 ك",{"$f":"IFERROR(INDEX({\"العمود c\";\"العمود d\";\"العمود e\";\"العمود f\";\"العمود g\";\"العمود h\"},MATCH(TRUE,NOT(C16=C16:H16),0)),\"لا يوجد عمود مختلف\")","v":"لا يوجد عمود مختلف"},"لا يوجد عمود مختلف فريد",null,"",null,""]
[15,6222000909808,"زبدة 12 كيس * 80 ق / 90 ق","زبدة 12 كيس * 80 ق / 90 ق","زبدة 12 كيس * 80 ق / 90 ق","زبدة 12 كيس * 80 ق / 90 ق","زبدة 12 كيس * 80 ق / 90 ق","زبدة 12 كيس * 80 ق / 90 ق","زبدة 12 كيس * 80 ق / 90 ق",{"$f":"IFERROR(INDEX({\"العمود c\";\"العمود d\";\"العمود e\";\"العمود f\";\"العمود g\";\"العمود h\"},MATCH(TRUE,NOT(C17=C17:H17),0)),\"لا يوجد عمود مختلف\")","v":"لا يوجد عمود مختلف"},"لا يوجد عمود مختلف فريد",null,"",null,""]
[16,6222000905268,"مصاصة 12 كيس * 55 ق","مصاصة 12 كيس * 55 ق","مصاصة 12 كيس * 55 ق","مصاصة 12 كيس * 55 ق","مصاصة 12 كيس * 55 ق","مصاصة 12 كيس * 55 ق","مصاصة 12 كيس * 55 ق",{"$f":"IFERROR(INDEX({\"العمود c\";\"العمود d\";\"العمود e\";\"العمود f\";\"العمود g\";\"العمود h\"},MATCH(TRUE,NOT(C18=C18:H18),0)),\"لا يوجد عمود مختلف\")","v":"لا يوجد عمود مختلف"},"لا يوجد عمود مختلف فريد",null,"",null,""]
[17,6222000907583,"زبدة 30 كيس * 18 ق / 25 ق","زبدة 30 كيس * 18 ق / 25 ق","زبدة 30 كيس * 18 ق *25 ق","زبدة 30 كيس * 18 ق *25 ق","زبدة 30 كيس * 18 ق *25 ق","زبدة 30 كيس * 18 ق *25 ق","زبدة 30 كيس * 18 ق / 25 ق",{"$f":"IFERROR(INDEX({\"العمود c\";\"العمود d\";\"العمود e\";\"العمود f\";\"العمود g\";\"العمود h\"},MATCH(TRUE,NOT(C19=C19:H19),0)),\"لا يوجد عمود مختلف\")","v":"لا يوجد عمود مختلف"},"لا يوجد عمود مختلف فريد",null,"",null,""]
[18,6222000909884,"زبدة 30 كيس * 12قطعه","زبدة 30 كيس * 12قطعه","زبدة 30 كيس * 12قطعه","زبدة 30 كيس * 12قطعه","زبدة 30 كيس * 12قطعه","زبدة 30 كيس * 12قطعه","زبدة 30 كيس * 12قطعه",{"$f":"IFERROR(INDEX({\"العمود c\";\"العمود d\";\"العمود e\";\"العمود f\";\"العمود g\";\"العمود h\"},MATCH(TRUE,NOT(C20=C20:H20),0)),\"لا يوجد عمود مختلف\")","v":"لا يوجد عمود مختلف"},"لا يوجد عمود مختلف فريد",null,"",null,""]
[19,"002770","زبدة 10 علبة *12 كيس","زبدة 10 علبة *12 كيس","زبدة 10 علبة *12 كيس","زبدة 10 علبة *12 كيس","زبدة 10 علبة *12 كيس","زبدة 10 علبة *12 كيس","زبدة 10 علبة *12 كيس",{"$f":"IFERROR(INDEX({\"العمود c\";\"العمود d\";\"العمود e\";\"العمود f\";\"العمود g\";\"العمود h\"},MATCH(TRUE,NOT(C21=C21:H21),0)),\"لا يوجد عمود مختلف\")","v":"لا يوجد عمود مختلف"},"لا يوجد عمود مختلف فريد",null,"",null,""]
[20,6222000912525,"سولا ف 12 ع * 200 ق","سولا ف 12 ع * 200 ق","سولا ف 12 ع * 200 ق","سولا ف 12 ع * 200 ق","سولا ف 12 ع * 200 ق","سولا ف 12 ع * 200 ق","سولا ف 12 ع * 200 ق",{"$f":"IFERROR(INDEX({\"العمود c\";\"العمود d\";\"العمود e\";\"العمود f\";\"العمود g\";\"العمود h\"},MATCH(TRUE,NOT(C22=C22:H22),0)),\"لا يوجد عمود مختلف\")","v":"لا يوجد عمود مختلف"},"لا يوجد عمود مختلف فريد",null,"",null,""]
[21,"6222000912518","سولا نعناع 12 ع * 200 ق","سولا نعناع 12 ع * 200 ق","سولا نعناع 12 ع * 200 ق","سولا نعناع 12 ع * 200 ق","سولا نعناع 12 ع * 200 ق","سولا نعناع 12 ع * 200 ق","سولا نعناع 12 ع * 200 ق",{"$f":"IFERROR(INDEX({\"العمود c\";\"العمود d\";\"العمود e\";\"العمود f\";\"العمود g\";\"العمود h\"},MATCH(TRUE,NOT(C23=C23:H23),0)),\"لا يوجد عمود مختلف\")","v":"لا يوجد عمود مختلف"},"لا يوجد عمود مختلف فريد",null,"",null,""]
[22,"6222000908566","سولا فواكة 5 ك","سولا فواكة 5 ك","سولا فواكة 5 ك","سولا فواكة 5 ك","سولا فواكة 5 ك","سولا فواكة 5 ك","سولا فواكة 5 ك",{"$f":"IFERROR(INDEX({\"العمود c\";\"العمود d\";\"العمود e\";\"العمود f\";\"العمود g\";\"العمود h\"},MATCH(TRUE,NOT(C24=C24:H24),0)),\"لا يوجد عمود مختلف\")","v":"لا يوجد عمود مختلف"},"لا يوجد عمود مختلف فريد",null,"",null,""]
[23,"6222000908573","سولا نعناع 5 ك","سولا نعناع 5 ك","سولا نعناع 5 ك","سولا نعناع 5 ك","سولا نعناع 5 ك","سولا نعناع 5 ك","سولا نعناع 5 ك",{"$f":"IFERROR(INDEX({\"العمود c\";\"العمود d\";\"العمود e\";\"العمود f\";\"العمود g\";\"العمود h\"},MATCH(TRUE,NOT(C25=C25:H25),0)),\"لا يوجد عمود مختلف\")","v":"لا يوجد عمود مختلف"},"لا يوجد عمود مختلف فريد",null,"",null,""]
[24,6222000912501,"عسلية 12 ع * 200 ق","عسلية 12 ع * 200 ق","عسلية 12 ع * 200 ق","عسلية 12 ع * 200 ق","عسلية 12 ع * 200 ق","عسلية 12 ع * 200 ق","عسلية 12 ع * 200 ق",{"$f":"IFERROR(INDEX({\"العمود c\";\"العمود d\";\"العمود e\";\"العمود f\";\"العمود g\";\"العمود h\"},MATCH(TRUE,NOT(C26=C26:H26),0)),\"لا يوجد عمود مختلف\")","v":"لا يوجد عمود مختلف"},"لا يوجد عمود مختلف فريد",null,"",null,""]
[25,6222000912457,"عسلية  5 ك","عسلية  5 ك","عسلية  5 ك","عسلية  5 ك","عسلية  5 ك","عسلية  5 ك","عسلية  5 ك",{"$f":"IFERROR(INDEX({\"العمود c\";\"العمود d\";\"العمود e\";\"العمود f\";\"العمود g\";\"العمود h\"},MATCH(TRUE,NOT(C27=C27:H27),0)),\"لا يوجد عمود مختلف\")","v":"لا يوجد عمود مختلف"},"لا يوجد عمود مختلف فريد",null,"",null,""]
[26,6222000901611,"اكلير سايب 10 كيلو","اكلير سايب 10 كيلو","اكلير سايب 10 كيلو","اكلير سايب 10 كيلو","اكلير سايب 10 كيلو","اكلير سايب 10 كيلو","اكلير سايب 10 كيلو",{"$f":"IFERROR(INDEX({\"العمود c\";\"العمود d\";\"العمود e\";\"العمود f\";\"العمود g\";\"العمود h\"},MATCH(TRUE,NOT(C28=C28:H28),0)),\"لا يوجد عمود مختلف\")","v":"لا يوجد عمود مختلف"},"لا يوجد عمود مختلف فريد",null,"",null,""]
[27,6222000909907,"اكلير  30 كيس * 9 ق / 10 ق","اكلير  30 كيس * 9 ق / 10 ق","اكلير  30 كيس * 9 ق / 10 ق","اكلير  30 كيس * 9 ق / 10 ق","اكلير  30 كيس * 9 ق / 10 ق","اكلير  30 كيس * 9 ق / 10 ق","اكلير  30 كيس * 9 ق / 10 ق",{"$f":"IFERROR(INDEX({\"العمود c\";\"العمود d\";\"العمود e\";\"العمود f\";\"العمود g\";\"العمود h\"},MATCH(TRUE,NOT(C29=C29:H29),0)),\"لا يوجد عمود مختلف\")","v":"لا يوجد عمود مختلف"},"لا يوجد عمود مختلف فريد",null,"",null,""]
[28,6222000911498,"اكلير سولا 5 كيلو ","اكلير سولا 5 كيلو ","اكلير سولا 5 كيلو ","اكلير سولا 5 كيلو ","اكلير سولا 5 كيلو ","اكلير سولا 5 كيلو ","اكلير سولا 5 كيلو ",{"$f":"IFERROR(INDEX({\"العمود c\";\"العمود d\";\"العمود e\";\"العمود f\";\"العمود g\";\"العمود h\"},MATCH(TRUE,NOT(C30=C30:H30),0)),\"لا يوجد عمود مختلف\")","v":"لا يوجد عمود مختلف"},"لا يوجد عمود مختلف فريد",null,"",null,""]
[29,"002771","اكلير 10 ع * 12 كيس","اكلير 10 ع * 12 كيس","اكلير 10 ع * 12 كيس","اكلير 10 ع * 12 كيس","اكلير 10 ع * 12 كيس","اكلير 10 ع * 12 كيس","اكلير 10 ع * 12 كيس",{"$f":"IFERROR(INDEX({\"العمود c\";\"العمود d\";\"العمود e\";\"العمود f\";\"العمود g\";\"العمود h\"},MATCH(TRUE,NOT(C31=C31:H31),0)),\"لا يوجد عمود مختلف\")","v":"لا يوجد عمود مختلف"},"لا يوجد عمود مختلف فريد",null,"",null,""]
[30,6222000912778,"اكلير 12كيس * 65 ق / 70 ق","اكلير 12كيس * 65 ق / 70 ق","اكلير 12كيس * 65 ق / 70 ق","اكلير 12كيس * 65 ق / 70 ق","اكلير 12كيس * 65 ق / 70 ق","اكلير 12كيس * 65 ق / 70 ق","اكلير 12كيس * 65 ق / 70 ق",{"$f":"IFERROR(INDEX({\"العمود c\";\"العمود d\";\"العمود e\";\"العمود f\";\"العمود g\";\"العمود h\"},MATCH(TRUE,NOT(C32=C32:H32),0)),\"لا يوجد عمود مختلف\")","v":"لا يوجد عمود مختلف"},"لا يوجد عمود مختلف فريد",null,"",null,""]
[31,6222000912822,"اكلير 30 كيس * 15 ق / 20 ق","اكلير 30 كيس * 15 ق / 20 ق","اكلير 30 كيس * 15 ق / 20 ق","اكلير 30 كيس * 15 ق / 20 ق","اكلير 30 كيس * 15 ق / 20 ق","اكلير 30 كيس * 15 ق / 20 ق","اكلير 30 كيس * 15 ق / 20 ق",{"$f":"IFERROR(INDEX({\"العمود c\";\"العمود d\";\"العمود e\";\"العمود f\";\"العمود g\";\"العمود h\"},MATCH(TRUE,NOT(C33=C33:H33),0)),\"لا يوجد عمود مختلف\")","v":"لا يوجد عمود مختلف"},"لا يوجد عمود مختلف فريد",null,"",null,""]
[32,6222000912532,"اكلير 12 علبة * 160 ق","اكلير 12 علبة * 160 ق","اكلير 12 علبة * 160 ق","اكلير 12 علبة * 160 ق","اكلير 12 علبة * 160 ق","اكلير 12 علبة * 160 ق","اكلير 12 علبة * 160 ق",{"$f":"IFERROR(INDEX({\"العمود c\";\"العمود d\";\"العمود e\";\"العمود f\";\"العمود g\";\"العمود h\"},MATCH(TRUE,NOT(C34=C34:H34),0)),\"لا يوجد عمود مختلف\")","v":"لا يوجد عمود مختلف"},"لا يوجد عمود مختلف فريد",null,"",null,""]
[33,6222000901697,"طوفي 10 كجم","طوفي 10 كجم","طوفي 10 كجم","طوفي 10 كجم","طوفي 10 كجم","طوفي 10 كجم","طوفي 10 كجم",{"$f":"IFERROR(INDEX({\"العمود c\";\"العمود d\";\"العمود e\";\"العمود f\";\"العمود g\";\"العمود h\"},MATCH(TRUE,NOT(C35=C35:H35),0)),\"لا يوجد عمود مختلف\")","v":"لا يوجد عمود مختلف"},"لا يوجد عمود مختلف فريد",null,"",null,""]
[34,6222000911481,"طوفي بردايس 5كيلو","طوفي بردايس 5كيلو","طوفي بردايس 5كيلو","طوفي بردايس 5كيلو","طوفي بردايس 5كيلو","طوفي بردايس 5كيلو","طوفي بردايس 5كيلو",{"$f":"IFERROR(INDEX({\"العمود c\";\"العمود d\";\"العمود e\";\"العمود f\";\"العمود g\";\"العمود h\"},MATCH(TRUE,NOT(C36=C36:H36),0)),\"لا يوجد عمود مختلف\")","v":"لا يوجد عمود مختلف"},"لا يوجد عمود مختلف فريد",null,"",null,""]
[35,6222000908276,"طوفي 30 كيس * 25 قطعه","طوفي 30 كيس * 25 قطعه","طوفي 30 كيس * 25 قطعه","طوفي 30 كيس * 25 قطعه","طوفي 30 كيس * 25 قطعه","طوفي 30 كيس * 25 قطعه","طوفي 30 كيس * 25 قطعه",{"$f":"IFERROR(INDEX({\"العمود c\";\"العمود d\";\"العمود e\";\"العمود f\";\"العمود g\";\"العمود h\"},MATCH(TRUE,NOT(C37=C37:H37),0)),\"لا يوجد عمود مختلف\")","v":"لا يوجد عمود مختلف"},"لا يوجد عمود مختلف فريد",null,"",null,""]
[36,6222000909921,"طوفي 30 كيس * 12قطعه","طوفي 30 كيس * 12قطعه","طوفي 30 كيس * 12قطعه","طوفي 30 كيس * 12قطعه","طوفي 30 كيس * 12قطعه","طوفي 30 كيس * 12قطعه","طوفي 30 كيس * 12قطعه",{"$f":"IFERROR(INDEX({\"العمود c\";\"العمود d\";\"العمود e\";\"العمود f\";\"العمود g\";\"العمود h\"},MATCH(TRUE,NOT(C38=C38:H38),0)),\"لا يوجد عمود مختلف\")","v":"لا يوجد عمود مختلف"},"لا يوجد عمود مختلف فريد",null,"",null,""]
[37,6222000909839,"طوفي 12 كيس * 90 ق","طوفي 12 كيس * 90 ق","طوفي 12 كيس * 90 ق","طوفي 12 كيس * 90 ق","طوفي 12 كيس * 90 ق","طوفي 12 كيس * 90 ق","طوفي 12 كيس * 90 ق",{"$f":"IFERROR(INDEX({\"العمود c\";\"العمود d\";\"العمود e\";\"العمود f\";\"العمود g\";\"العمود h\"},MATCH(TRUE,NOT(C39=C39:H39),0)),\"لا يوجد عمود مختلف\")","v":"لا يوجد عمود مختلف"},"لا يوجد عمود مختلف فريد",null,"",null,""]
[38,6222000908825,"طوفى 12 ع * 200 ق","طوفى 12 ع * 200 ق","طوفى 12 ع * 200 ق","طوفى 12 ع * 200 ق","طوفى 12 ع * 200 ق","طوفى 12 ع * 200 ق","طوفى 12 ع * 200 ق",{"$f":"IFERROR(INDEX({\"العمود c\";\"العمود d\";\"العمود e\";\"العمود f\";\"العمود g\";\"العمود h\"},MATCH(TRUE,NOT(C40=C40:H40),0)),\"لا يوجد عمود مختلف\")","v":"لا يوجد عمود مختلف"},"لا يوجد عمود مختلف فريد",null,"",null,""]
[39,6222000907637,"شيكولاته بوتيك 16 علبه * 50 قطعة","شيكولاته بوتيك 16 علبه * 50 قطعة","شيكولاته بوتيك 16 علبه * 50 قطعة","شيكولاته بوتيك 16 علبه * 50 قطعة","شيكولاته بوتيك 16 علبه * 50 قطعة","شيكولاته بوتيك 16 علبه * 50 قطعة","شيكولاته بوتيك 16 علبه * 50 قطعة",{"$f":"IFERROR(INDEX({\"العمود c\";\"العمود d\";\"العمود e\";\"العمود f\";\"العمود g\";\"العمود h\"},MATCH(TRUE,NOT(C41=C41:H41),0)),\"لا يوجد عمود مختلف\")","v":"لا يوجد عمود مختلف"},"لا يوجد عمود مختلف فريد",null,"",null,""]
[40,6222000903295,"شيكولاته بوتيك 6 علبه * 1.25 كيلو","شيكولاته بوتيك 6 علبه * 1.25 كيلو","شيكولاته بوتيك 6 علبه * 1.25 كيلو","شيكولاته بوتيك 6 علبه * 1.25 كيلو","شيكولاته بوتيك 6 علبه * 1.25 كيلو","شيكولاته بوتيك 6 علبه * 1.25 كيلو","شيكولاته بوتيك 6 علبه * 1.25 كيلو",{"$f":"IFERROR(INDEX({\"العمود c\";\"العمود d\";\"العمود e\";\"العمود f\";\"العمود g\";\"العمود h\"},MATCH(TRUE,NOT(C42=C42:H42),0)),\"لا يوجد عمود مختلف\")","v":"لا يوجد عمود مختلف"},"لا يوجد عمود مختلف فريد",null,"",null,""]
[41,6222000912006,"شيكولاته بوتيك حليب 4 ك","شيكولاته بوتيك حليب 4 ك","شيكولاته بوتيك حليب 4 ك","شيكولاته بوتيك حليب 4 ك","شيكولاته بوتيك حليب 4 ك","شيكولاته بوتيك حليب 4 ك","شيكولاته بوتيك حليب 4 ك",{"$f":"IFERROR(INDEX({\"العمود c\";\"العمود d\";\"العمود e\";\"العمود f\";\"العمود g\";\"العمود h\"},MATCH(TRUE,NOT(C43=C43:H43),0)),\"لا يوجد عمود مختلف\")","v":"لا يوجد عمود مختلف"},"لا يوجد عمود مختلف فريد",null,"",null,""]
[42,6222000911993,"شيكولاته بوتيك كراميل 4 ك","شيكولاته بوتيك كراميل 4 ك","شيكولاته بوتيك كراميل 4 ك","شيكولاته بوتيك كراميل 4 ك","شيكولاته بوتيك كراميل 4 ك","شيكولاته بوتيك كراميل 4 ك","شيكولاته بوتيك كراميل 4 ك",{"$f":"IFERROR(INDEX({\"العمود c\";\"العمود d\";\"العمود e\";\"العمود f\";\"العمود g\";\"العمود h\"},MATCH(TRUE,NOT(C44=C44:H44),0)),\"لا يوجد عمود مختلف\")","v":"لا يوجد عمود مختلف"},"لا يوجد عمود مختلف فريد",null,"",null,""]
[43,6222000912013,"شيكولاته بوتيك بندق 4 ك","شيكولاته بوتيك بندق 4 ك","شيكولاته بوتيك بندق 4 ك","شيكولاته بوتيك بندق 4 ك","شيكولاته بوتيك بندق 4 ك","شيكولاته بوتيك بندق 4 ك","شيكولاته بوتيك بندق 4 ك",{"$f":"IFERROR(INDEX({\"العمود c\";\"العمود d\";\"العمود e\";\"العمود f\";\"العمود g\";\"العمود h\"},MATCH(TRUE,NOT(C45=C45:H45),0)),\"لا يوجد عمود مختلف\")","v":"لا يوجد عمود مختلف"},"لا يوجد عمود مختلف فريد",null,"",null,""]
[44,6222000964197,"شيكوهند سايب 10 كجم","شيكوهند سايب 10 كجم","شيكوهند سايب 10 كجم","شيكوهند سايب 10 كجم","شيكوهند سايب 10 كجم","شيكوهند سايب 10 كجم","شيكوهند سايب 10 كجم",{"$f":"IFERROR(INDEX({\"العمود c\";\"العمود d\";\"العمود e\";\"العمود f\";\"العمود g\";\"العمود h\"},MATCH(TRUE,NOT(C46=C46:H46),0)),\"لا يوجد عمود مختلف\")","v":"لا يوجد عمود مختلف"},"لا يوجد عمود مختلف فريد",null,"",null,""]
[45,6222000906630,"سوفت شيكوهند 5 ك","سوفت شيكوهند 5 ك","سوفت شيكوهند 5 ك","سوفت شيكوهند 5 ك","سوفت شيكوهند 5 ك","سوفت شيكوهند 5 ك","سوفت شيكوهند 5 ك",{"$f":"IFERROR(INDEX({\"العمود c\";\"العمود d\";\"العمود e\";\"العمود f\";\"العمود g\";\"العمود h\"},MATCH(TRUE,NOT(C47=C47:H47),0)),\"لا يوجد عمود مختلف\")","v":"لا يوجد عمود مختلف"},"لا يوجد عمود مختلف فريد",null,"",null,""]
[46,6222000902519,"ويفر ايليت  مغطس بنى 12 *12","ويفر ايليت  مغطس بنى 12 *12","ويفر ايليت  مغطس بنى 12 *12","ويفر ايليت  مغطس بنى 12 *12","ويفر ايليت  مغطس بنى 12 *12","ويفر ايليت  مغطس بنى 12 *12","ويفر ايليت  مغطس بنى 12 *12",{"$f":"IFERROR(INDEX({\"العمود c\";\"العمود d\";\"العمود e\";\"العمود f\";\"العمود g\";\"العمود h\"},MATCH(TRUE,NOT(C48=C48:H48),0)),\"لا يوجد عمود مختلف\")","v":"لا يوجد عمود مختلف"},"لا يوجد عمود مختلف فريد",null,"",null,""]
[47,6222000902557,"ويفر ايليت مغطس ابيض  12 * 12","ويفر ايليت مغطس ابيض  12 * 12","ويفر ايليت مغطس ابيض  12 * 12","ويفر ايليت مغطس ابيض  12 * 12","ويفر ايليت مغطس ابيض  12 * 12","ويفر ايليت مغطس ابيض  12 * 12","ويفر ايليت مغطس ابيض  12 * 12",{"$f":"IFERROR(INDEX({\"العمود c\";\"العمود d\";\"العمود e\";\"العمود f\";\"العمود g\";\"العمود h\"},MATCH(TRUE,NOT(C49=C49:H49),0)),\"لا يوجد عمود مختلف\")","v":"لا يوجد عمود مختلف"},"لا يوجد عمود مختلف فريد",null,"",null,""]
[48,6222000902564," ويفر ايليت مغطس فراولة 12*12"," ويفر ايليت مغطس فراولة 12*12"," ويفر ايليت مغطس فراولة 12*12"," ويفر ايليت مغطس فراولة 12*12"," ويفر ايليت مغطس فراولة 12*12"," ويفر ايليت مغطس فراولة 12*12"," ويفر ايليت مغطس فراولة 12*12",{"$f":"IFERROR(INDEX({\"العمود c\";\"العمود d\";\"العمود e\";\"العمود f\";\"العمود g\";\"العمود h\"},MATCH(TRUE,NOT(C50=C50:H50),0)),\"لا يوجد عمود مختلف\")","v":"لا يوجد عمود مختلف"},"لا يوجد عمود مختلف فريد",null,"",null,""]
[49,6222000910200,"ايليت ماكس سادة ش 12 باكو 6 قطع","ايليت ماكس سادة ش 12 باكو 6 قطع","ايليت ماكس سادة ش 12 باكو 6 قطع","ايليت ماكس سادة ش 12 باكو 6 قطع","ايليت ماكس سادة ش 12 باكو 6 قطع","ايليت ماكس سادة ش 12 باكو 6 قطع","ايليت ماكس سادة ش 12 باكو 6 قطع",{"$f":"IFERROR(INDEX({\"العمود c\";\"العمود d\";\"العمود e\";\"العمود f\";\"العمود g\";\"العمود h\"},MATCH(TRUE,NOT(C51=C51:H51),0)),\"لا يوجد عمود مختلف\")","v":"لا يوجد عمود مختلف"},"لا يوجد عمود مختلف فريد",null,"",null,""]
[50,6222000910514,"ايليت  ماكس سادة فانيليا 12 باكو * 6 قطع","ايليت  ماكس سادة فانيليا 12 باكو * 6 قطع","ايليت  ماكس سادة فانيليا 12 باكو * 6 قطع","ايليت  ماكس سادة فانيليا 12 باكو * 6 قطع","ايليت  ماكس سادة فانيليا 12 باكو * 6 قطع","ايليت  ماكس سادة فانيليا 12 باكو * 6 قطع","ايليت  ماكس سادة فانيليا 12 باكو * 6 قطع",{"$f":"IFERROR(INDEX({\"العمود c\";\"العمود d\";\"العمود e\";\"العمود f\";\"العمود g\";\"العمود h\"},MATCH(TRUE,NOT(C52=C52:H52),0)),\"لا يوجد عمود مختلف\")","v":"لا يوجد عمود مختلف"},"لا يوجد عمود مختلف فريد",null,"",null,""]
[51,6222000909976,"ويفر مربع  3 كيلو ايليت  ابيض","ويفر مربع  3 كيلو ايليت  ابيض","ويفر مربع  3 كيلو ايليت  ابيض","ويفر مربع  3 كيلو ايليت  ابيض","ويفر مربع  3 كيلو ايليت  ابيض","ويفر مربع  3 كيلو ايليت  ابيض","ويفر مربع  3 كيلو ايليت  ابيض",{"$f":"IFERROR(INDEX({\"العمود c\";\"العمود d\";\"العمود e\";\"العمود f\";\"العمود g\";\"العمود h\"},MATCH(TRUE,NOT(C53=C53:H53),0)),\"لا يوجد عمود مختلف\")","v":"لا يوجد عمود مختلف"},"لا يوجد عمود مختلف فريد",null,"",null,""]
[52,6222000909983,"ويفر مربع  3 كيلو ايليت  شيكولاته","ويفر مربع  3 كيلو ايليت  شيكولاته","ويفر مربع  3 كيلو ايليت  شيكولاته","ويفر مربع  3 كيلو ايليت  شيكولاته","ويفر مربع  3 كيلو ايليت  شيكولاته","ويفر مربع  3 كيلو ايليت  شيكولاته","ويفر مربع  3 كيلو ايليت  شيكولاته",{"$f":"IFERROR(INDEX({\"العمود c\";\"العمود d\";\"العمود e\";\"العمود f\";\"العمود g\";\"العمود h\"},MATCH(TRUE,NOT(C54=C54:H54),0)),\"لا يوجد عمود مختلف\")","v":"لا يوجد عمود مختلف"},"لا يوجد عمود مختلف فريد",null,"",null,""]
[53,6222000909969,"ويفر مربع  3 كيلو ايليت  فراوله","ويفر مربع  3 كيلو ايليت  فراوله","ويفر مربع  3 كيلو ايليت  فراوله","ويفر مربع  3 كيلو ايليت  فراوله","ويفر مربع  3 كيلو ايليت  فراوله","ويفر مربع  3 كيلو ايليت  فراوله","ويفر مربع  3 كيلو ايليت  فراوله",{"$f":"IFERROR(INDEX({\"العمود c\";\"العمود d\";\"العمود e\";\"العمود f\";\"العمود g\";\"العمود h\"},MATCH(TRUE,NOT(C55=C55:H55),0)),\"لا يوجد عمود مختلف\")","v":"لا يوجد عمود مختلف"},"لا يوجد عمود مختلف فريد",null,"",null,""]
[54,622200097116,"ويفر فرحه 5 كيلو","ويفر فرحه 5 كيلو","ويفر فرحه 5 كيلو","ويفر فرحه 5 كيلو","ويفر فرحه 5 كيلو","ويفر فرحه 5 كيلو","ويفر فرحه 5 كيلو",{"$f":"IFERROR(INDEX({\"العمود c\";\"العمود d\";\"العمود e\";\"العمود f\";\"العمود g\";\"العمود h\"},MATCH(TRUE,NOT(C56=C56:H56),0)),\"لا يوجد عمود مختلف\")","v":"لا يوجد عمود مختلف"},"لا يوجد عمود مختلف فريد",null,"",null,""]
[55,6222000912372,"ويفر ايليت مربع بايتس 3 ك بني","ويفر ايليت مربع بايتس 3 ك بني","ويفر ايليت مربع بايتس 3 ك بني","ويفر ايليت مربع بايتس 3 ك بني","ويفر ايليت مربع بايتس 3 ك بني","ويفر ايليت مربع بايتس 3 ك بني","ويفر ايليت مربع بايتس 3 ك بني",{"$f":"IFERROR(INDEX({\"العمود c\";\"العمود d\";\"العمود e\";\"العمود f\";\"العمود g\";\"العمود h\"},MATCH(TRUE,NOT(C57=C57:H57),0)),\"لا يوجد عمود مختلف\")","v":"لا يوجد عمود مختلف"},"لا يوجد عمود مختلف فريد",null,"",null,""]
[56,6222000912488,"بسكوت اكشن سادة شاي 6 ع * 12 ق","بسكوت اكشن سادة شاي 6 ع * 12 ق","بسكوت اكشن سادة شاي 6 ع * 12 ق","بسكوت اكشن سادة شاي 6 ع * 12 ق","بسكوت اكشن سادة شاي 6 ع * 12 ق","بسكوت اكشن سادة شاي 6 ع * 12 ق","بسكوت اكشن سادة شاي 6 ع * 12 ق",{"$f":"IFERROR(INDEX({\"العمود c\";\"العمود d\";\"العمود e\";\"العمود f\";\"العمود g\";\"العمود h\"},MATCH(TRUE,NOT(C58=C58:H58),0)),\"لا يوجد عمود مختلف\")","v":"لا يوجد عمود مختلف"},"لا يوجد عمود مختلف فريد",null,"",null,""]
[57,6222000914383,"بسكوت اكشن سادة شاي 6 ع * 12 ق ( نباتى )","بسكوت اكشن سادة شاي 6 ع * 12 ق ( نباتى )","بسكوت اكشن سادة شاي 6 ع * 12 ق ( نباتى )( فيجن )","بسكوت اكشن سادة شاي 6 ع * 12 ق ( نباتى )","بسكوت اكشن سادة شاي 6 ع * 12 ق ( نباتى )","بسكوت اكشن سادة شاي 6 ع * 12 ق ( نباتى )","بسكوت اكشن سادة شاي 6 ع * 12 ق ( نباتى )",{"$f":"IFERROR(INDEX({\"العمود c\";\"العمود d\";\"العمود e\";\"العمود f\";\"العمود g\";\"العمود h\"},MATCH(TRUE,NOT(C59=C59:H59),0)),\"لا يوجد عمود مختلف\")","v":"لا يوجد عمود مختلف"},"العمود E مختلف",null,"العمود E مختلف",null,"العمود E مختلف"]
[58,6222000916165,"ويفر اكشن مغطس بنى 12ع * 12 ق ( 5 جنية )","ويفر اكشن مغطس بنى 12ع * 12 ق ( 5 جنية )","ويفر اكشن مغطس بنى 12ع * 12 ق ( 5 جنية )","ويفر اكشن مغطس بنى 12ع * 12 ق ( 5 جنية )","ويفر اكشن مغطس بنى 12ع * 12 ق ( 5 جنية )","ويفر اكشن مغطس بنى 12ع * 12 ق ( 5 جنية )","ويفر اكشن مغطس بنى 12ع * 12 ق ( 5 جنية )",{"$f":"IFERROR(INDEX({\"العمود c\";\"العمود d\";\"العمود e\";\"العمود f\";\"العمود g\";\"العمود h\"},MATCH(TRUE,NOT(C60=C60:H60),0)),\"لا يوجد عمود مختلف\")","v":"لا يوجد عمود مختلف"},"لا يوجد عمود مختلف فريد",null,"",null,""]
[59,6222000916172,"ويفر اكشن مغطس أبيض 12ع * 12 ق ( 5 جنية )","ويفر اكشن مغطس أبيض 12ع * 12 ق ( 5 جنية )","ويفر اكشن مغطس أبيض 12ع * 12 ق ( 5 جنية )","ويفر اكشن مغطس أبيض 12ع * 12 ق ( 5 جنية )","ويفر اكشن مغطس أبيض 12ع * 12 ق ( 5 جنية )","ويفر اكشن مغطس أبيض 12ع * 12 ق ( 5 جنية )","ويفر اكشن مغطس أبيض 12ع * 12 ق ( 5 جنية )",{"$f":"IFERROR(INDEX({\"العمود c\";\"العمود d\";\"العمود e\";\"العمود f\";\"العمود g\";\"العمود h\"},MATCH(TRUE,NOT(C61=C61:H61),0)),\"لا يوجد عمود مختلف\")","v":"لا يوجد عمود مختلف"},"لا يوجد عمود مختلف فريد",null,"",null,""]
[60,6222000912365,"بايتس  مربع 6ع * 50ق  بنى","بايتس  مربع 6ع * 50ق  بنى","بايتس  مربع 6ع * 50ق  بنى","بايتس  مربع 6ع * 50ق  بنى","بايتس  مربع 6ع * 50ق  بنى","بايتس  مربع 6ع * 50ق  بنى","بايتس  مربع 6ع * 50ق  بنى",{"$f":"IFERROR(INDEX({\"العمود c\";\"العمود d\";\"العمود e\";\"العمود f\";\"العمود g\";\"العمود h\"},MATCH(TRUE,NOT(C62=C62:H62),0)),\"لا يوجد عمود مختلف\")","v":"لا يوجد عمود مختلف"},"لا يوجد عمود مختلف فريد",null,"",null,""]
[61,6222000902083,"بايتس مربع 6 ع * 50 ق ابيض ","بايتس مربع 6 ع * 50 ق ابيض ","بايتس مربع 6 ع * 50 ق ابيض ","بايتس مربع 6 ع * 50 ق ابيض ","بايتس مربع 6 ع * 50 ق ابيض ","بايتس مربع 6 ع * 50 ق ابيض ","بايتس مربع 6 ع * 50 ق ابيض ",{"$f":"IFERROR(INDEX({\"العمود c\";\"العمود d\";\"العمود e\";\"العمود f\";\"العمود g\";\"العمود h\"},MATCH(TRUE,NOT(C63=C63:H63),0)),\"لا يوجد عمود مختلف\")","v":"لا يوجد عمود مختلف"},"لا يوجد عمود مختلف فريد",null,"",null,""]
[62,6222000913904,"بايتس مربع 6 ع * 50 ق فراولة ","بايتس مربع 6 ع * 50 ق فراولة ","بايتس مربع 6 ع * 50 ق فراولة ","بايتس مربع 6 ع * 50 ق فراولة ","بايتس مربع 6 ع * 50 ق فراولة ","بايتس مربع 6 ع * 50 ق فراولة ","بايتس مربع 6 ع * 50 ق فراولة ",{"$f":"IFERROR(INDEX({\"العمود c\";\"العمود d\";\"العمود e\";\"العمود f\";\"العمود g\";\"العمود h\"},MATCH(TRUE,NOT(C64=C64:H64),0)),\"لا يوجد عمود مختلف\")","v":"لا يوجد عمود مختلف"},"لا يوجد عمود مختلف فريد",null,"",null,""]
[63,"EG-670026743-2453","لبان محشو بالعسل 12 علبة *100قطعه(هوني)","لبان محشو بالعسل 12 علبة *100قطعه(هوني)","لبان محشو بالعسل 12 علبة *100قطعه(هوني)","لبان محشو بالعسل 12 علبة *100قطعه(هوني)","لبان محشو بالعسل 12 علبة *100قطعه(هوني)","لبان محشو بالعسل 12 علبة *100قطعه(هوني)","لبان محشو بالعسل 12 علبة *100قطعه(هوني)",{"$f":"IFERROR(INDEX({\"العمود c\";\"العمود d\";\"العمود e\";\"العمود f\";\"العمود g\";\"العمود h\"},MATCH(TRUE,NOT(C65=C65:H65),0)),\"لا يوجد عمود مختلف\")","v":"لا يوجد عمود مختلف"},"لا يوجد عمود مختلف فريد",null,"",null,""]
[64,6222000915243,"بار شيكوهند 3 ك","بار شيكوهند 3 ك","بار شيكوهند 3 ك","بار شيكوهند 3 ك","بار شيكوهند 3 ك","بار شيكوهند 3 ك","بار شيكوهند 3 ك",{"$f":"IFERROR(INDEX({\"العمود c\";\"العمود d\";\"العمود e\";\"العمود f\";\"العمود g\";\"العمود h\"},MATCH(TRUE,NOT(C66=C66:H66),0)),\"لا يوجد عمود مختلف\")","v":"لا يوجد عمود مختلف"},"لا يوجد عمود مختلف فريد",null,"",null,""]
[65,6888000909953,"ويفر مربع 3 كيلو ايليت جوز هند","ويفر مربع 3 كيلو ايليت جوز هند","ويفر مربع 3 كيلو ايليت جوز هند","ويفر مربع 3 كيلو ايليت جوز هند","ويفر مربع 3 كيلو ايليت جوز هند","ويفر مربع 3 كيلو ايليت جوز هند","ويفر مربع 3 كيلو ايليت جوز هند",{"$f":"IFERROR(INDEX({\"العمود c\";\"العمود d\";\"العمود e\";\"العمود f\";\"العمود g\";\"العمود h\"},MATCH(TRUE,NOT(C67=C67:H67),0)),\"لا يوجد عمود مختلف\")","v":"لا يوجد عمود مختلف"},"لا يوجد عمود مختلف فريد",null,"",null,""]
[66,6222000910064,"زبدة 10 شنطة * 800 جم","زبدة 10 شنطة * 800 جم","زبدة 10 شنطة * 800 جم","زبدة 10 شنطة * 800 جم","زبدة 10 شنطة * 800 جم","زبدة 10 شنطة * 800 جم","زبدة 10 شنطة * 800 جم",{"$f":"IFERROR(INDEX({\"العمود c\";\"العمود d\";\"العمود e\";\"العمود f\";\"العمود g\";\"العمود h\"},MATCH(TRUE,NOT(C68=C68:H68),0)),\"لا يوجد عمود مختلف\")","v":"لا يوجد عمود مختلف"},{"$f":"IF(COUNTIF(C68:H68,C68)=1,\"العمود C مختلف\",IF(COUNTIF(C68:H68,D68)=1,\"العمود D مختلف\",IF(COUNTIF(C68:H68,E68)=1,\"العمود E مختلف\",IF(COUNTIF(C68:H68,F68)=1,\"العمود F مختلف\",IF(COUNTIF(C68:H68,G68)=1,\"العمود G مختلف\",IF(COUNTIF(C68:H68,H68)=1,\"العمود H مختلف\",\"لا يوجد عمود مختلف فريد\"))))))","v":"لا يوجد عمود مختلف فريد"},null,{"$f":"TRIM(  IF(COUNTIF(C68:I68,C68)=1, \"العمود C مختلف\", \"\") &    IF(AND(COUNTIF(C68:I68,C68)=1, OR(COUNTIF(C68:I68,D68)=1,COUNTIF(C68:I68,E68)=1,COUNTIF(C68:I68,F68)=1,COUNTIF(C68:I68,G68)=1,COUNTIF(C68:I68,H68)=1,COUNTIF(C68:I68,I68)=1)), \" و \", \"\") &    IF(COUNTIF(C68:I68,D68)=1, \"العمود D مختلف\", \"\") &    IF(AND(COUNTIF(C68:I68,D68)=1, OR(COUNTIF(C68:I68,E68)=1,COUNTIF(C68:I68,F68)=1,COUNTIF(C68:I68,G68)=1,COUNTIF(C68:I68,H68)=1,COUNTIF(C68:I68,I68)=1)), \" و \", \"\") &    IF(COUNTIF(C68:I68,E68)=1, \"العمود E مختلف\", \"\") &    IF(AND(COUNTIF(C68:I68,E68)=1, OR(COUNTIF(C68:I68,F68)=1,COUNTIF(C68:I68,G68)=1,COUNTIF(C68:I68,H68)=1,COUNTIF(C68:I68,I68)=1)), \" و \", \"\") &    IF(COUNTIF(C68:I68,F68)=1, \"العمود F مختلف\", \"\") &    IF(AND(COUNTIF(C68:I68,F68)=1, OR(COUNTIF(C68:I68,G68)=1,COUNTIF(C68:I68,H68)=1,COUNTIF(C68:I68,I68)=1)), \" و \", \"\") &    IF(COUNTIF(C68:I68,G68)=1, \"العمود G مختلف\", \"\") &    IF(AND(COUNTIF(C68:I68,G68)=1, OR(COUNTIF(C68:I68,H68)=1,COUNTIF(C68:I68,I68)=1)), \" و \", \"\") &    IF(COUNTIF(C68:I68,H68)=1, \"العمود H مختلف\", \"\") &    IF(AND(COUNTIF(C68:I68,H68)=1, COUNTIF(C68:I68,I68)=1), \" و \", \"\") &   IF(COUNTIF(C68:I68,I68)=1, \"العمود I مختلف\", \"\"))","v":""},null,{"$f":"GetUniqueColumns(C68:I68)","v":""}]
[67,6222000916295,"سولا فواكة 6 كيس * 800 جم","سولا فواكة 6 كيس * 800 جم","سولا فواكة 6 كيس * 800 جم","سولا فواكة 6 كيس * 800 جم","سولا فواكة 6 كيس * 800 جم","سولا فواكة 6 كيس * 800 جم","سولا فواكة 6 كيس * 800 جم",{"$f":"IFERROR(INDEX({\"العمود c\";\"العمود d\";\"العمود e\";\"العمود f\";\"العمود g\";\"العمود h\"},MATCH(TRUE,NOT(C69=C69:H69),0)),\"لا يوجد عمود مختلف\")","v":"لا يوجد عمود مختلف"},"لا يوجد عمود مختلف فريد",null,"",null,""]
[68,6222000612549,"شيكوهند سوفت 12 ع * 100 ق","شيكوهند سوفت 12 ع * 100 ق","شيكوهند سوفت 12 ع * 100 ق","شيكوهند سوفت 12 ع * 100 ق","شيكوهند سوفت 12 ع * 100 ق","زى كولا مشروب غازى 275 حلى","شيكوهند سوفت 12 ع * 100 ق",{"$f":"IFERROR(INDEX({\"العمود c\";\"العمود d\";\"العمود e\";\"العمود f\";\"العمود g\";\"العمود h\"},MATCH(TRUE,NOT(C70=C70:H70),0)),\"لا يوجد عمود مختلف\")","v":"لا يوجد عمود مختلف"},"العمود H مختلف",null,"العمود H مختلف",null,"العمود H مختلف"]
[69,6222000915915,"طوفى 30 كيس * 28 ق","طوفى 30 كيس * 28 ق","طوفى 30 كيس * 28 ق","طوفى 30 كيس * 28 ق","طوفى 30 كيس * 28 ق","طوفى 30 كيس * 28 ق","طوفى 30 كيس * 28 ق",{"$f":"IFERROR(INDEX({\"العمود c\";\"العمود d\";\"العمود e\";\"العمود f\";\"العمود g\";\"العمود h\"},MATCH(TRUE,NOT(C71=C71:H71),0)),\"لا يوجد عمود مختلف\")","v":"لا يوجد عمود مختلف"},"لا يوجد عمود مختلف فريد",null,"",null,""]
[70,"002797","كورن عائلي 15 كيس","كورن عائلي 15 كيس","كورن عائلي 15 كيس","كورن عائلي 15 كيس","كورن عائلي 15 كيس","كورن عائلي 15 كيس","كورن عائلي 15 كيس",{"$f":"IFERROR(INDEX({\"العمود c\";\"العمود d\";\"العمود e\";\"العمود f\";\"العمود g\";\"العمود h\"},MATCH(TRUE,NOT(C72=C72:H72),0)),\"لا يوجد عمود مختلف\")","v":"لا يوجد عمود مختلف"},"لا يوجد عمود مختلف فريد",null,"",null,""]
[71,"002796","فاير فنجرز 15 كيس","فاير فنجرز 15 كيس","فاير فنجرز 15 كيس","فاير فنجرز 15 كيس","فاير فنجرز 15 كيس","فاير فنجرز 15 كيس","فاير فنجرز 15 كيس",{"$f":"IFERROR(INDEX({\"العمود c\";\"العمود d\";\"العمود e\";\"العمود f\";\"العمود g\";\"العمود h\"},MATCH(TRUE,NOT(C73=C73:H73),0)),\"لا يوجد عمود مختلف\")","v":"لا يوجد عمود مختلف"},"لا يوجد عمود مختلف فريد",null,"",null,""]
[72,"001766","اسبيشيال أطعم  15 كيس","اسبيشيال أطعم  15 كيس","اسبيشيال أطعم  15 كيس","اسبيشيال أطعم  15 كيس","اسبيشيال أطعم  15 كيس","اسبيشيال أطعم  15 كيس","اسبيشيال أطعم  15 كيس",{"$f":"IFERROR(INDEX({\"العمود c\";\"العمود d\";\"العمود e\";\"العمود f\";\"العمود g\";\"العمود h\"},MATCH(TRUE,NOT(C74=C74:H74),0)),\"لا يوجد عمود مختلف\")","v":"لا يوجد عمود مختلف"},"لا يوجد عمود مختلف فريد",null,"",null,""]
[73,"6224001574221","زى كولا مشروب غازى 275 حلى","زى كولا مشروب غازى 275 حلى","زى كولا مشروب غازى 275 حلى","زى كولا مشروب غازى 275 حلى","زى كولا مشروب غازى 275 حلى","شيكوهند سوفت 12 ع * 100 ق","زى كولا مشروب غازى 275 حلى",{"$f":"IFERROR(INDEX({\"العمود c\";\"العمود d\";\"العمود e\";\"العمود f\";\"العمود g\";\"العمود h\"},MATCH(TRUE,NOT(C75=C75:H75),0)),\"لا يوجد عمود مختلف\")","v":"لا يوجد عمود مختلف"},"العمود H مختلف",null,"العمود H مختلف",null,"العمود H مختلف"]
[74,"2798","اهلا بالعيد 8 كيس * 660 جم","اهلا بالعيد 8 كيس * 660 جم","اهلا بالعيد 8 كيس * 660 جم","اهلا بالعيد 8 كيس * 660 جم","اهلا بالعيد 8 كيس * 660 جم","اهلا بالعيد 8 كيس * 660 جم","اهلا بالعيد 8 كيس * 660 جم",{"$f":"IFERROR(INDEX({\"العمود c\";\"العمود d\";\"العمود e\";\"العمود f\";\"العمود g\";\"العمود h\"},MATCH(TRUE,NOT(C76=C76:H76),0)),\"لا يوجد عمود مختلف\")","v":"لا يوجد عمود مختلف"},"لا يوجد عمود مختلف فريد",null,"",null,""]
[75,"6222000916738","ويفر بوتيك مربع 9 كيس * 500 جم","ويفر بوتيك مربع 9 كيس * 500 جم","ويفر بوتيك مربع 9 كيس * 500 جم","ويفر بوتيك مربع 9 كيس * 500 جم","ويفر بوتيك مربع 9 كيس * 500 جم","ويفر بوتيك مربع 9 كيس * 500 جم","ويفر بوتيك مربع 9 كيس * 500 جم",{"$f":"IFERROR(INDEX({\"العمود c\";\"العمود d\";\"العمود e\";\"العمود f\";\"العمود g\";\"العمود h\"},MATCH(TRUE,NOT(C77=C77:H77),0)),\"لا يوجد عمود مختلف\")","v":"لا يوجد عمود مختلف"},"لا يوجد عمود مختلف فريد",null,"",null,""]
[76,"002798","طوفي 12 علبه * 240 ق","ويفر بار اكشن مغطس 8ع*12 ابيض","شيل أوت شيبس 15 كيس سعر الكيس 10 جنية",null,null,null,"طوفي 12 علبه * 240 ق",{"$f":"IFERROR(INDEX({\"العمود c\";\"العمود d\";\"العمود e\";\"العمود f\";\"العمود g\";\"العمود h\"},MATCH(TRUE,NOT(C78=C78:H78),0)),\"لا يوجد عمود مختلف\")","v":"لا يوجد عمود مختلف"},"العمود C مختلف",null,"العمود D مختلف و العمود E مختلف",null,"العمود D مختلف و العمود E مختلف"]
[77,"6222000917773","سولا فواكه 30 كيس * 28 ق",null,"ويفر بار اكشن نباتي مغطس صيامي ابيض 8*12 ( 8 علبة)",null,null,null,"سولا فواكه 30 كيس * 28 ق",{"$f":"IFERROR(INDEX({\"العمود c\";\"العمود d\";\"العمود e\";\"العمود f\";\"العمود g\";\"العمود h\"},MATCH(TRUE,NOT(C79=C79:H79),0)),\"لا يوجد عمود مختلف\")","v":"لا يوجد عمود مختلف"},"العمود C مختلف",null,"العمود E مختلف",null,"العمود E مختلف"]
[78,"6222000917780","سولا فواكه 12 كيس * 100 ق",null,null,null,null,null,"سولا فواكه 12 كيس * 100 ق",{"$f":"IFERROR(INDEX({\"العمود c\";\"العمود d\";\"العمود e\";\"العمود f\";\"العمود g\";\"العمود h\"},MATCH(TRUE,NOT(C80=C80:H80),0)),\"لا يوجد عمود مختلف\")","v":"لا يوجد عمود مختلف"},"العمود C مختلف",null,"",null,""]
[79,null,"طوفي 30 كيس * 28 قطعه",null,null,null,null,null,null,{"$f":"IFERROR(INDEX({\"العمود c\";\"العمود d\";\"العمود e\";\"العمود f\";\"العمود g\";\"العمود h\"},MATCH(TRUE,NOT(C81=C81:H81),0)),\"لا يوجد عمود مختلف\")","v":"لا يوجد عمود مختلف"},"العمود C مختلف",null,"العمود C مختلف",null,"العمود C مختلف"]